Cogmind - Beta 12 @@@ ROGUE MODE // 2023.03.30 @ 22:56:40 Player: Exp. Geonium Core Result: Destroyed by S-43 Plague with Heavy Machine Gun Performance ------------- Evolutions (7) 3500 Regions Visited (22) 4400 Robots Destroyed (132) 660 Value Destroyed (10880) 10880 Prototype IDs (29) 580 Alien Tech Used (0) 0 Bonus (11052) 11052 TOTAL SCORE: 31072 Bonus ------- High Alert Combat Kills 1272 Follower Combat Kills 5024 Entered Garrisons 1800 Used RIF Installer 4000 Aligned with FarCom 300 Friendly Fire -1344 Cogmind --------- Core Integrity 0/1300 Matter 257/300 Energy 70/100 System Corruption 31% Temperature Cool (12) Movement Core (50) Location -3/Garrison Parts ------- > --- POWER (1) -------- (None) > --- PROPULSION (3) --- (None) > --- UTILITY (15) ----- Relay Coupler [Swarmer] (21) Relay Coupler [Grunt] (32) Relay Coupler [Specialist] (23) Relay Coupler [Behemoth] (14) > --- WEAPON (2) ------- Powered Hammer > --- INVENTORY (5) ---- Antimissile System Advanced Remote Datajack Peak State ------------ > --- POWER ------------ Light Quantum Reactor > --- PROPULSION ------- Myomer Leg Centrium Leg Centrium Leg > --- UTILITY ---------- Lightpack 2.0 Advanced Phase Shifter Heavy Armor Plating Advanced Force Field Relay Coupler [NC] Relay Coupler [NC] Relay Coupler [Swarmer] Relay Coupler [Grunt] Relay Coupler [Brawler] Relay Coupler [Hunter] Relay Coupler [Behemoth] Improved Corruption Screen > --- WEAPON ----------- Improved Remote Datajack Powered Hammer > --- INVENTORY -------- Light Antimatter Reactor Quantum Reactor Flexi-carbon Leg Flexi-carbon Leg Myomer Leg Myomer Leg Compact Battery Compact Battery Advanced Phase Shifter Advanced Force Field Antimissile System Antimissile System Authchip [Processor] Relay Coupler [NC] Relay Coupler [NC] Relay Coupler [Swarmer] Relay Coupler [Swarmer] Relay Coupler [Swarmer] Relay Coupler [Swarmer] Relay Coupler [Swarmer] Relay Coupler [Grunt] Relay Coupler [Specialist] Relay Coupler [Specialist] Relay Coupler [Heavy] Relay Coupler [Proto] Relay Coupler [Proto] Relay Coupler [Proto] Relay Coupler [Proto] Quantum Rifle Heavy Particle Cannon Heavy Rocket Launcher Advanced Datajack Remote Datajack Remote Datajack Advanced Remote Datajack Plasma Cutter [Rating: 144] Favorites ----------- Power Light Nuclear Core Engine Ion Engine Power Core Light Nuclear Core Reactor Quantum Reactor Propulsion Improved Carbon-fiber Leg Treads Light Treads Leg Improved Carbon-fiber Leg Wheel Wheel Utility Lightpack 2.0 Device Advanced Phase Shifter Storage Lightpack 2.0 Processor Improved Corruption Screen Hackware Relay Coupler [Grunt] Protection Improved Medium Armor Plating Weapon Heavy Particle Cannon Energy Gun Medium Laser Energy Cannon Heavy Particle Cannon Ballistic Gun Assault Rifle Ballistic Cannon Light Cannon Launcher Heavy Rocket Launcher Special Weapon Remote Datajack Impact Weapon Powered Hammer Special Melee Weapon Improved Datajack Build | -11 -10 -10 -10 -9 -8 -8 -8 -8 -7 -7 -7 -7 -6 -6 -5 -5 -4 -4 -3 -3 -3 -3 ------- Run | Jun Mat Min Exi Min Mat Gar Mat Gar Fac Gar Fac Gar Fac Gar Fac Gar Fac Gar Res Gar Res Gar Slots Evolved 14 | . . . . . 4 . . . 2 . . . 2 . 2 . 2 . 2 . . . Power . | . . . . . . . . . . . . . . . . . . . . . . . Propulsion 1 | . . . . . . . . . 1 . . . . . . . . . . . . . Utility 13 | . . . . . 4 . . . 1 . . . 2 . 2 . 2 . 2 . . . Weapon . | . . . . . . . . . . . . . . . . . . . . . . . Parts Attached 215 | . 7 1 1 3 10 25 20 20 8 12 3 12 6 5 3 11 2 13 . 23 3 27 Power 16 | . 1 . . . . 2 1 3 1 . . 2 1 . . 2 . . . 1 . 2 Engine 2 | . 1 . . . . 1 . . . . . . . . . . . . . . . . Core 8 | . . . . . . 1 1 3 1 . . 1 1 . . . . . . . . . Reactor 6 | . . . . . . . . . . . . 1 . . . 2 . . . 1 . 2 Propulsion 28 | . 2 1 . 1 . 2 3 1 2 2 1 3 3 2 1 2 . 1 . . . 1 Treads 6 | . 2 1 . . . . . . 1 1 . . . . . . . . . . . 1 Leg 21 | . . . . . . 2 3 1 1 1 1 3 3 2 1 2 . 1 . . . . Wheel 1 | . . . . 1 . . . . . . . . . . . . . . . . . . Hover . | . . . . . . . . . . . . . . . . . . . . . . . Flight . | . . . . . . . . . . . . . . . . . . . . . . . Utility 98 | . 3 . 1 . 6 5 8 11 5 7 2 5 2 . 2 3 1 7 . 15 2 13 Device 20 | . . . . . 2 . 5 4 1 . . . . . 1 1 1 2 . 2 . 1 Storage 6 | . . . 1 . 1 . . . . . . . . . . . . . . . . 4 Processor 2 | . . . . . . . . . . . . . . . 1 . . . . 1 . . Hackware 42 | . . . . . . . 1 4 4 6 2 5 1 . . 1 . 3 . 5 2 8 Protection 28 | . 3 . . . 3 5 2 3 . 1 . . 1 . . 1 . 2 . 7 . . Artifact . | . . . . . . . . . . . . . . . . . . . . . . . Weapon 73 | . 1 . . 2 4 16 8 5 . 3 . 2 . 3 . 4 1 5 . 7 1 11 Energy Gun 10 | . . . . . 1 4 1 . . . . . . . . . . . . 2 . 2 Energy Cannon 8 | . . . . . 1 . 3 1 . 1 . . . . . . . 1 . . . 1 Ballistic Gun 10 | . . . . 1 1 7 1 . . . . . . . . . . . . . . . Ballistic Cannon 6 | . 1 . . . . 3 1 . . . . . . . . . . . . . . 1 Launcher 16 | . . . . 1 1 2 1 1 . 1 . 1 . 1 . 2 . 1 . 1 . 3 Special Weapon 15 | . . . . . . . . 1 . 1 . 1 . 1 . 2 1 2 . 3 1 2 Impact Weapon 5 | . . . . . . . . . . . . . . 1 . . . 1 . 1 . 2 Slashing Weapon . | . . . . . . . . . . . . . . . . . . . . . . . Piercing Weapon . | . . . . . . . . . . . . . . . . . . . . . . . Special Melee Weapon 3 | . . . . . . . 1 2 . . . . . . . . . . . . . . Unidentified Prototypes 2 | . . . . . 1 . . . . . . . . . . . 1 . . . . . Corrupted Parts 3 | . . . . . . . . . . . . . . . . . . . . . . 3 System Corruption 23 | . . . . . . . . . . . . . . . . . . . . . . 23 Parts Lost 62 | . 3 . . 1 2 9 4 2 1 1 1 3 . . . 1 . . . 11 2 21 Power 8 | . 1 . . . . 3 . 1 . . . 1 . . . . . . . 1 . 1 Propulsion 13 | . . . . 1 . 2 . 1 1 1 1 2 . . . . . . . . . 4 Utility 32 | . 2 . . . 2 2 2 . . . . . . . . 1 . . . 9 2 12 Weapon 9 | . . . . . . 2 2 . . . . . . . . . . . . 1 . 4 Highest Loss Streak 19 | . 2 . . 1 1 5 3 1 1 1 1 3 . . . 1 . . . 3 2 19 To Critical Strikes . | . . . . . . . . . . . . . . . . . . . . . . . Average Slot Usage (%) 82 | . 93 100 100 99 72 75 78 78 83 81 83 83 78 80 76 85 83 88 80 78 80 86 Engine 2 | . 11 14 14 14 9 3 . . . . . . . . . . . . . . . . Core 3 | . . . . . . 3 7 9 7 7 7 4 4 6 5 1 . . . . . . Reactor 1 | . . . . . . . . . . . . 2 1 . . 3 5 5 4 3 4 3 Treads 5 | . 23 28 28 26 9 3 . . 5 5 . . . . . . . . . . . . Leg 13 | . 4 . . . . 9 16 17 16 15 23 22 20 20 17 17 15 15 14 14 14 12 Device 5 | . . . . . 7 3 12 10 7 . . . . . 2 4 9 10 14 6 8 4 Storage 8 | . 14 14 14 14 9 9 9 9 7 7 7 7 6 6 5 5 5 5 4 4 4 5 Hackware 14 | . . . . . . . 2 8 20 22 27 29 27 26 23 24 26 31 23 24 29 44 Protection 9 | . 9 14 14 14 10 22 10 5 1 5 1 . 3 6 5 9 10 8 9 9 3 . Energy Cannon 4 | . . . . . 6 . 10 11 7 6 7 7 6 . . . . . . . . . Ballistic Gun 3 | . 14 14 14 14 7 12 2 . . . . . . . . . . . . . . . Ballistic Cannon 2 | . 5 14 14 12 . 1 3 . . . . . . . . . . . . . . . Special Weapon 2 | . . . . . . . . . 7 7 7 6 6 4 5 2 5 5 4 3 4 2 Impact Weapon 1 | . . . . . . . . . . . . . . 5 5 5 5 4 4 3 4 2 Naked Turns . | . . . . . . . . . . . . . . . . . . . . . . . Heaviest Build 66 | 12 18 18 53 56 31 27 33 31 37 36 35 31 33 34 31 46 47 56 50 66 60 58 Greatest Support 85 | 20 40 40 40 40 20 25 36 36 51 43 43 38 53 58 60 80 80 85 85 85 85 85 Greatest Overweight (x) 5 | . . . 1 5 2 5 1 1 . 1 . 1 . . . . . . . . . 1 Average Overweight (x) . | . . . . 1 1 . . . . . . . . . . . . . . . . . Largest Inventory Capacity 40 | 8 8 8 20 20 40 40 40 40 40 40 40 40 40 40 40 40 40 40 40 40 40 40 Average Capacity 35 | 8 8 8 17 20 40 40 40 40 40 40 40 40 40 40 40 40 40 40 40 40 40 10 Most Carried 40 | 6 7 8 11 13 21 37 40 40 39 40 39 39 39 40 38 40 40 40 40 40 39 35 Average Carried 30 | 6 5 7 9 12 14 28 39 37 36 36 37 33 37 37 35 37 39 38 39 35 37 9 Final Capacity 40 | 8 8 8 20 20 40 40 40 40 40 40 40 40 40 40 40 40 40 40 40 40 40 5 Final Carried 40 | 6 6 8 11 12 21 37 40 40 38 39 39 38 38 38 35 39 40 40 38 39 35 2 Class Distribution -------------------- 35% | Bothacker-Mutant 33% | Botlord-Mutant 14% | Mutant 10% | Hauler-Mutant 4% | Bothacker-Skirmisher Dominant Class ---------------- Mutant | -10/Materials Mutant | -10/Mines Mutant | -10/Exiles Mutant | -9/Mines Hauler-Mutant | -8/Materials Hauler-Mutant | -8/Garrison Bothacker-Mutant | -8/Materials Bothacker-Mutant | -8/Garrison Bothacker-Mutant | -7/Factory Bothacker-Mutant | -7/Garrison Bothacker-Mutant | -7/Factory Bothacker-Mutant | -7/Garrison Botlord-Mutant | -6/Factory Botlord-Mutant | -6/Garrison Botlord-Mutant | -5/Factory Botlord-Mutant | -5/Garrison Botlord-Mutant | -4/Factory Botlord-Mutant | -4/Garrison Botlord-Mutant | -3/Research Botlord-Mutant | -3/Garrison Botlord-Mutant | -3/Research Botlord-Mutant | -3/Garrison Resources | -11 -10 -10 -10 -9 -8 -8 -8 -8 -7 -7 -7 -7 -6 -6 -5 -5 -4 -4 -3 -3 -3 -3 ----------- Run | Jun Mat Min Exi Min Mat Gar Mat Gar Fac Gar Fac Gar Fac Gar Fac Gar Fac Gar Res Gar Res Gar Matter Collected 4682 | 200 233 108 10 15 277 458 553 275 37 358 46 241 110 223 85 210 . 264 . 579 63 337 Remotely . | . . . . . . . . . . . . . . . . . . . . . . . Salvage Created 4626 | . 418 104 . 31 372 693 562 282 . 201 . 24 158 386 . 249 . 248 81 609 11 197 Parts 233 | . 16 21 . 2 17 49 35 21 . 7 . 2 3 11 . 13 . 13 2 11 . 10 Haulers Intercepted 2 | . 1 . . . 1 . . . . . . . . . . . . . . . . . Recyclers Shooed 6 | . 3 . . . . . 2 . . . . . 1 . . . . . . . . . Parts Field Recycled . | . . . . . . . . . . . . . . . . . . . . . . . Retrieved Matter . | . . . . . . . . . . . . . . . . . . . . . . . Parts Self-Destructed . | . . . . . . . . . . . . . . . . . . . . . . . Prevented . | . . . . . . . . . . . . . . . . . . . . . . . Kills | -11 -10 -10 -10 -9 -8 -8 -8 -8 -7 -7 -7 -7 -6 -6 -5 -5 -4 -4 -3 -3 -3 -3 ------- Run | Jun Mat Min Exi Min Mat Gar Mat Gar Fac Gar Fac Gar Fac Gar Fac Gar Fac Gar Res Gar Res Gar Combat Hostiles Destroyed 114 | . 7 9 . 2 4 26 13 9 . 5 . 1 . 7 . 9 . 5 1 10 . 6 Melee 5 | . . . . . . . . . . . . . . 2 . . . 2 . 1 . . Guns 38 | . 7 4 . 1 1 20 4 . . . . . . . . . . . . . . 1 Cannons 28 | . . 5 . . 1 1 9 5 . 3 . 1 . . . . . . . . . 3 AOE 32 | . . . . 1 . 5 . 3 . 1 . . . 5 . 7 . 2 . 6 . 2 Classes Destroyed 13 | . 3 1 . 1 4 3 . . . . . . . . . . . . . 1 . . Worker 2 | . . . . . 1 . 1 . . . . . . . . . . . . . . . Tunneler 2 | . . . . 1 . . . . . . . . . . . . . . . . 1 . Hauler 2 | . 1 . . . 1 . . . . . . . . . . . . . . . . . Recycler 4 | . 1 . . . 2 . . . . . . . 1 . . . . . . . . . Watcher 4 | . . . . . 3 . 1 . . . . . . . . . . . . . . . Swarmer 38 | . . 9 . 2 . 10 4 3 . 1 . . . . . 6 . . . . . 3 Grunt 39 | . 7 . . . . 5 3 2 . 3 . . . 5 . 3 . 3 1 7 . . Brawler 6 | . . . . . . 2 1 . . . . . . 2 . . . . . 1 . . Duelist 2 | . . . . . . 1 . . . . . . . . . . . . . 1 . . Protector 1 | . . . . . . . . . . . . . . . . . . . . 1 . . Sentry 12 | . . . . . 1 2 5 . . 2 . . . . . . . . . 2 . . Hunter 6 | . . . . . 3 3 . . . . . . . . . . . . . . . . Programmer 14 | . . . . . . 3 . 4 . . . 1 . . . . . 2 . 1 . 3 Best Kill Streak 6 | . 3 3 . 1 5 5 2 3 . 1 . 1 . 5 . 4 . 3 1 6 1 3 Combat Bots Only 6 | . 3 3 . 1 2 5 2 3 . 1 . 1 . 5 . 4 . 3 1 6 . 3 Max Kills in Single Turn 4 | . 1 1 . 1 2 3 1 3 . 1 . 1 1 3 . 4 . 1 1 3 1 1 Gunslinging . | . . . . . . . . . . . . . . . . . . . . . . . Exploded 4 | . . . . 1 . 3 . 3 . 1 . . . 3 . 4 . 1 . 1 . 1 Melee 1 | . . . . . . . . . . . . . . 1 . . . 1 . 1 . . Uniques/NPCs Destroyed . | . . . . . . . . . . . . . . . . . . . . . . . Combat | -11 -10 -10 -10 -9 -8 -8 -8 -8 -7 -7 -7 -7 -6 -6 -5 -5 -4 -4 -3 -3 -3 -3 -------- Run | Jun Mat Min Exi Min Mat Gar Mat Gar Fac Gar Fac Gar Fac Gar Fac Gar Fac Gar Res Gar Res Gar Damage Taken 11817 | . 704 182 . 140 461 1496 689 375 140 725 8 430 42 157 72 405 . 147 . 2559 389 2696 Core 2164 | . 103 . . 9 28 197 133 63 30 85 . 119 . 26 . 59 . 8 . 294 23 987 Absorbed by Shields 1367 | . . . . . 28 29 . . . 241 8 34 20 128 69 112 . 102 . 61 153 382 Core Remaining (%) 76 | 100 . . . 55 . . . 23 . . . 66 . 96 . 94 . 99 . . . . Volleys Fired 621 | . 60 14 . 18 28 86 78 48 19 58 7 34 21 27 16 11 . 17 7 33 11 28 Largest 2 | . 2 2 . 2 2 2 2 2 1 1 1 2 1 1 1 1 . 1 1 1 1 2 Hottest 150 | . 70 55 . 55 113 115 150 150 5 75 75 111 75 39 5 30 . 75 7 39 7 133 Shots Fired 781 | . 79 28 . 21 38 145 125 53 19 58 7 35 21 27 16 11 . 17 7 33 11 30 Gun 285 | . 79 14 . 17 17 128 24 . . . . . . . . . . . . . . 6 Cannon 266 | . . 14 . 3 16 13 100 51 . 39 2 11 7 . . . . 3 . . . 7 Launcher 46 | . . . . 1 5 4 1 1 . 2 . 2 . 2 . 8 . 3 . 13 . 4 Special 184 | . . . . . . . . 1 19 17 5 22 14 25 16 3 . 11 7 20 11 13 Kinetic 259 | . 60 28 . 20 16 110 21 . . . . . . . . . . . . . . 4 Thermal 263 | . 19 . . . . 14 103 51 . 39 2 11 7 . . . . 8 . . . 9 Explosive 46 | . . . . 1 5 4 1 1 . 2 . 2 . 2 . 8 . 3 . 13 . 4 Electromagnetic 34 | . . . . . 17 17 . . . . . . . . . . . . . . . . Robot Hit Streak 14 | . 6 5 . 6 13 13 7 7 4 12 4 14 8 4 3 3 . 13 9 11 2 5 Robot Miss Streak 6 | . 6 3 . 3 1 5 3 2 4 2 1 2 2 5 5 1 . 1 . 3 1 2 Penetration Max . | . . . . . . . . . . . . . . . . . . . . . . . Secondary Targets 4 | . 1 . . . . 3 . . . . . . . . . . . . . . . . Max Gunslinging Chain 1 | . 1 . . . . 1 . . . . . . . . . . . . . . . . Shots Hit Robots 505 | . 47 14 . 6 28 103 50 27 11 35 5 21 16 17 5 8 . 20 8 57 8 19 Core Hits 232 | . 20 9 . 3 11 56 23 9 1 7 . 1 4 9 . 20 . 7 . 36 . 16 Critical Kills 2 | . . . . . . . . 1 . 1 . . . . . . . . . . . . Critical Parts Destroyed 5 | . . . . . . . . . . . . . . 1 . . . 1 . 3 . . Critical Strikes 11 | . 2 . . . 1 . . 1 . 1 . . . 1 . . . 1 . 4 . . Burn 2 | . 2 . . . . . . . . . . . . . . . . . . . . . Meltdown 2 | . . . . . . . . 1 . 1 . . . . . . . . . . . . Corrupt 1 | . . . . . 1 . . . . . . . . . . . . . . . . . Smash 6 | . . . . . . . . . . . . . . 1 . . . 1 . 4 . . Melee Attacks 133 | . . . . . . . 2 12 . . . . . 9 . 12 3 17 1 69 1 7 Impact 119 | . . . . . . . . . . . . . . 9 . 12 3 17 1 69 1 7 Slashing . | . . . . . . . . . . . . . . . . . . . . . . . Piercing . | . . . . . . . . . . . . . . . . . . . . . . . Sneak Attacks 10 | . . . . . . . . 1 . . . . . 1 . 1 . 2 1 3 1 . Combat Hostiles 9 | . . . . . . . . 1 . . . . . 1 . 1 . 2 1 3 . . Follow-up Attacks . | . . . . . . . . . . . . . . . . . . . . . . . Damage Inflicted 14795 | . 655 234 . 201 1010 2634 1198 631 5 835 50 195 150 850 . 1020 . 988 61 3041 100 937 Guns 3340 | . 655 110 . 139 237 1909 222 . . . . . . . . . . . . . . 68 Cannons 3077 | . . 124 . . 383 122 888 467 . 556 50 62 150 . . . . 50 . . . 225 Explosions 5977 | . . . . 61 382 602 . 164 . 276 . 103 . 652 . 890 . 505 . 1698 . 644 Melee 2181 | . . . . . . . . . . . . . . 198 . 121 . 378 61 1323 100 . Ramming 165 | . . . . 1 8 1 88 . 5 3 . 30 . . . 9 . . . 20 . . Kinetic 3047 | . 481 234 . 139 224 1549 265 . . . . . . . . . . . . . . 155 Thermal 2733 | . 174 . . . . 186 845 467 . 556 50 62 150 . . . . 105 . . . 138 Explosive 5939 | . . . . 61 382 564 . 164 . 276 . 103 . 652 . 890 . 505 . 1698 . 644 Electromagnetic 730 | . . . . . 396 334 . . . . . . . . . . . . . . . . Impact 2181 | . . . . . . . . . . . . . . 198 . 121 . 378 61 1323 100 . Slashing . | . . . . . . . . . . . . . . . . . . . . . . . Piercing . | . . . . . . . . . . . . . . . . . . . . . . . Highest Corruption 31 | . . . . . 1 4 4 4 . . . . . . . . 2 2 . 1 1 31 Average Corruption 2 | . . . . . 1 1 4 4 . . . . . . . . 2 2 . 1 1 2 Corruption Purged . | . . . . . . . . . . . . . . . . . . . . . . . Corruption Blocked 1 | . . . . . . . . . . . . . . . . . . . . . . 1 Effects 119 | . . . . . 2 13 52 28 . . . . . . . . 1 11 . 7 2 3 Message Errors 28 | . . . . . 1 2 11 6 . . . . . . . . . 4 . 3 . 1 Matter Fused 25 | . . . . . . 4 10 6 . . . . . . . . 1 3 . 1 . . Heat Flow Errors 14 | . . . . . . . 6 5 . . . . . . . . . 2 . . . 1 Energy Discharges 17 | . . . . . . 3 5 6 . . . . . . . . . 1 . . 2 . Parts Rejected 2 | . . . . . . . 2 . . . . . . . . . . . . . . . Parts Fused 3 | . . . . . . 2 1 . . . . . . . . . . . . . . . Data Loss (minor) 16 | . . . . . . 1 8 3 . . . . . . . . . 1 . 2 . 1 Data Loss (major) 1 | . . . . . . . 1 . . . . . . . . . . . . . . . Misfires 8 | . . . . . . 1 6 1 . . . . . . . . . . . . . . Alerts 4 | . . . . . 1 . 2 . . . . . . . . . . . . 1 . . Weapon Failures 1 | . . . . . . . . 1 . . . . . . . . . . . . . . Overload Shots . | . . . . . . . . . . . . . . . . . . . . . . . Overflow Damage 848 | . . . . . 27 . 10 25 . 22 . 11 . 117 . 41 . 241 11 236 78 29 Projectiles 70 | . . . . . . . 10 25 . . . 11 . . . . . 24 . . . . Explosions 168 | . . . . . 27 . . . . 22 . . . . . . . . . 90 . 29 Melee 610 | . . . . . . . . . . . . . . 117 . 41 . 217 11 146 78 . Knockbacks 9 | . . 2 . . . . 1 . . . . 3 . . . 2 . . . . . 1 Impact 6 | . . . . . . . 1 . . . . 3 . . . 2 . . . . . . Kinetic 3 | . . 2 . . . . . . . . . . . . . . . . . . . 1 Secondary . | . . . . . . . . . . . . . . . . . . . . . . . Self-Inflicted Damage 458 | . . . . . . 74 . 17 . . . 76 . . . . . 67 . 180 . 44 Shots 14 | . . . . . . 3 . 1 . . . 2 . . . . . 3 . 4 . 1 Rammed 4 | . 1 . . 2 . 1 . . . . . . . . . . . . . . . . Targets Rammed 39 | . 2 . . 2 1 1 14 . 1 1 . 9 . . . 3 . . . 4 1 . Kicked 33 | . . . . . . . 14 . 1 1 . 9 . . . 3 . . . 4 1 . Crushed 2 | . 1 . . . 1 . . . . . . . . . . . . . . . . . Highest Temperature 417 | . 417 15 . 6 153 165 280 183 . 178 44 69 78 . . 5 . 123 . 16 . 252 Average Temperature 65 | . 191 6 . 3 50 49 68 45 . 45 26 23 43 . . 5 . 66 . 10 . 74 Received Heat Transfer 2008 | . 420 . . 30 27 189 279 180 18 207 4 68 19 40 . 89 . 16 . 414 4 4 Effects 5 | . 2 . . . . . 3 . . . . . . . . . . . . . . . Shutdowns 1 | . 1 . . . . . . . . . . . . . . . . . . . . . Energy Bleed 1 | . . . . . . . 1 . . . . . . . . . . . . . . . Interference 2 | . . . . . . . 2 . . . . . . . . . . . . . . . Damage (major) 1 | . 1 . . . . . . . . . . . . . . . . . . . . . Siege Activations . | . . . . . . . . . . . . . . . . . . . . . . . Robots Corrupted 2 | . . . . . 2 . . . . . . . . . . . . . . . . . Combat Hostiles 2 | . . . . . 2 . . . . . . . . . . . . . . . . . Parts Fried 10 | . . . . . 3 . . . . . . . . 1 . . . 1 2 1 2 . Impact Corruptions 19 | . . . . . . . . . . . . . . 1 . 2 . 4 1 8 3 . Robots Melted 3 | . . . . . . . . 1 . 2 . . . . . . . . . . . . Combat Hostiles 2 | . . . . . . . . 1 . 1 . . . . . . . . . . . . Parts Melted 10 | . 1 . . . . . 1 3 . 5 . . . . . . . . . . . . Heat Transferred 4362 | . 666 . . . . 383 1332 629 . 758 74 74 132 . . . . 166 . . . 148 Parts Sabotaged . | . . . . . . . . . . . . . . . . . . . . . . . Parts Stolen . | . . . . . . . . . . . . . . . . . . . . . . . Parts Stripped . | . . . . . . . . . . . . . . . . . . . . . . . Power Chain Reactions 2 | . . . . . . 2 . . . . . . . . . . . . . . . . Missiles Intercepted . | . . . . . . . . . . . . . . . . . . . . . . . Alert | -11 -10 -10 -10 -9 -8 -8 -8 -8 -7 -7 -7 -7 -6 -6 -5 -5 -4 -4 -3 -3 -3 -3 ------- Run | Jun Mat Min Exi Min Mat Gar Mat Gar Fac Gar Fac Gar Fac Gar Fac Gar Fac Gar Res Gar Res Gar Peak Influence 1440 | . 200 321 . 92 198 954 601 790 509 974 549 809 807 1016 707 1440 751 914 543 1202 737 776 Initial 745 | . . 23 . . 35 19 464 251 414 356 511 174 424 564 533 494 745 525 513 407 675 495 Average 541 | . 75 175 . 7 103 543 483 434 478 698 462 425 595 873 667 983 746 722 525 857 685 651 Maximum Alert Level 4 | . 1 1 . . . 3 2 3 2 3 2 3 3 3 3 4 3 3 2 4 3 3 Low Security (%) 15 | 100 85 76 . 100 100 20 . . . . . 9 . . . . . . . . . . Level 1 10 | . 14 23 . . . 12 3 47 . 6 24 40 . . . . . . . . . . Level 2 43 | . . . . . . 28 96 45 100 36 75 43 85 10 32 30 . 53 100 14 75 69 Level 3 27 | . . . . . . 39 . 7 . 56 . 6 14 89 67 38 100 46 . 75 24 30 Level 4 2 | . . . . . . . . . . . . . . . . 30 . . . 9 . . Level 5 . | . . . . . . . . . . . . . . . . . . . . . . . High Security . | . . . . . . . . . . . . . . . . . . . . . . . Max Security . | . . . . . . . . . . . . . . . . . . . . . . . Squads Dispatched 10 | . 2 . . . . . . . . . . . 2 . 1 . 1 . . . 4 . Investigation 2 | . 1 . . . . . . . . . . . . . . . 1 . . . . . Extermination . | . . . . . . . . . . . . . . . . . . . . . . . Reinforcement 6 | . 1 . . . . . . . . . . . 1 . 1 . . . . . 3 . Assault . | . . . . . . . . . . . . . . . . . . . . . . . Garrison 2 | . . . . . . . . . . . . . 1 . . . . . . . 1 . Intercept . | . . . . . . . . . . . . . . . . . . . . . . . Searches Triggered . | . . . . . . . . . . . . . . . . . . . . . . . Construction Impeded 2 | . . . . . . . . . . . . . 1 . 1 . . . . . . . Haulers Reinforced 1 | . . . . . . . . . . . . . . . . . . . . . 1 . Active Scanning Responses . | . . . . . . . . . . . . . . . . . . . . . . . Cargo Convoy Interrupts . | . . . . . . . . . . . . . . . . . . . . . . . Stealth | -11 -10 -10 -10 -9 -8 -8 -8 -8 -7 -7 -7 -7 -6 -6 -5 -5 -4 -4 -3 -3 -3 -3 --------- Run | Jun Mat Min Exi Min Mat Gar Mat Gar Fac Gar Fac Gar Fac Gar Fac Gar Fac Gar Res Gar Res Gar Distress Signals 9 | . . . . . 1 . 4 . 1 . . . . . 1 . . . . . 2 . Communications Jammed 44 | . . . . . . . . . 44 . . . . . . . . . . . . . Distress Signals 44 | . . . . . . . . . 44 . . . . . . . . . . . . . Times Spotted 379 | . 12 11 . 8 14 27 30 17 11 32 4 29 12 30 7 29 . 5 3 40 26 32 Peak Tracking Total 13 | . 7 3 . 3 5 6 4 3 4 6 3 6 4 6 3 8 . 3 2 7 12 13 Tactical Retreats 11 | . . 1 . 1 1 1 2 1 . 1 . . . 1 . . . . . 1 1 . Traps | -11 -10 -10 -10 -9 -8 -8 -8 -8 -7 -7 -7 -7 -6 -6 -5 -5 -4 -4 -3 -3 -3 -3 ------- Run | Jun Mat Min Exi Min Mat Gar Mat Gar Fac Gar Fac Gar Fac Gar Fac Gar Fac Gar Res Gar Res Gar Traps Triggered 26 | . . . . . 1 5 . . 2 . . 3 . . . 1 2 2 . 8 1 1 Indirectly . | . . . . . . . . . . . . . . . . . . . . . . . Trap Hack Attempts . | . . . . . . . . . . . . . . . . . . . . . . . Triggered . | . . . . . . . . . . . . . . . . . . . . . . . Disarmed . | . . . . . . . . . . . . . . . . . . . . . . . Reprogrammed . | . . . . . . . . . . . . . . . . . . . . . . . Reused . | . . . . . . . . . . . . . . . . . . . . . . . Traps Extracted . | . . . . . . . . . . . . . . . . . . . . . . . Installed . | . . . . . . . . . . . . . . . . . . . . . . . Triggered 2 | . . . . . . . . . . . . . . 2 . . . . . . . . Machines | -11 -10 -10 -10 -9 -8 -8 -8 -8 -7 -7 -7 -7 -6 -6 -5 -5 -4 -4 -3 -3 -3 -3 ---------- Run | Jun Mat Min Exi Min Mat Gar Mat Gar Fac Gar Fac Gar Fac Gar Fac Gar Fac Gar Res Gar Res Gar Machines Disabled 34 | . 2 . . . . 3 . 6 . 4 . 4 1 2 . 2 . 3 . 5 . 2 Max in Single Turn 1 | . 1 . . . . 1 . 1 . 1 . 1 . 1 . 1 . 1 . 1 . 1 Garrison Relay 30 | . . . . . . 3 . 6 . 4 . 4 . 2 . 2 . 3 . 4 . 2 Machines Repaired . | . . . . . . . . . . . . . . . . . . . . . . . Machines Sabotaged . | . . . . . . . . . . . . . . . . . . . . . . . Overloaded Fab Kills . | . . . . . . . . . . . . . . . . . . . . . . . Hacking | -11 -10 -10 -10 -9 -8 -8 -8 -8 -7 -7 -7 -7 -6 -6 -5 -5 -4 -4 -3 -3 -3 -3 --------- Run | Jun Mat Min Exi Min Mat Gar Mat Gar Fac Gar Fac Gar Fac Gar Fac Gar Fac Gar Res Gar Res Gar Machines Accessed 37 | . 2 . 1 . 2 2 5 3 3 2 3 2 1 1 1 2 1 2 1 2 1 . Terminals 25 | . 1 . . . 1 2 4 3 2 2 1 2 . 1 . 2 . 2 . 2 . . Fabricators 1 | . . . . . . . . . . . 1 . . . . . . . . . . . Repair Stations . | . . . . . . . . . . . . . . . . . . . . . . . Recycling Units 1 | . 1 . . . . . . . . . . . . . . . . . . . . . Scanalyzers . | . . . . . . . . . . . . . . . . . . . . . . . Garrison Access 9 | . . . . . 1 . 1 . 1 . 1 . 1 . 1 . 1 . 1 . 1 . Total Hacks 67 | . 5 . 1 . 5 4 15 5 5 2 5 2 1 2 1 3 1 4 1 4 1 . Successful 30 | . 1 . 1 . 2 1 6 1 3 1 4 1 1 2 1 1 1 1 1 . 1 . Failed 37 | . 4 . . . 3 3 9 4 2 1 1 1 . . . 2 . 3 . 4 . . Catastrophic 9 | . 1 . . . . 1 3 1 . . . 1 . . . . . . . 2 . . Database Lockouts . | . . . . . . . . . . . . . . . . . . . . . . . Manual 34 | . 5 . 1 . 4 . 12 1 3 . 1 . . 1 . 1 . 4 . 1 . . Terminals 55 | . 4 . . . 4 4 14 5 4 2 3 2 . 2 . 3 . 4 . 4 . . Fabricators 1 | . . . . . . . . . . . 1 . . . . . . . . . . . Repair Stations . | . . . . . . . . . . . . . . . . . . . . . . . Recycling Units 1 | . 1 . . . . . . . . . . . . . . . . . . . . . Scanalyzers . | . . . . . . . . . . . . . . . . . . . . . . . Garrison Access 9 | . . . . . 1 . 1 . 1 . 1 . 1 . 1 . 1 . 1 . 1 . Terminal Hacks 15 | . . . 1 . . 1 3 1 1 1 2 1 . 2 . 1 . 1 . . . . Robot Schematic 1 | . . . . . . . . . 1 . . . . . . . . . . . . . Emergency Access Points 6 | . . . . . . 1 . 1 . 1 . 1 . 1 . 1 . . . . . . Terminal Index 1 | . . . . . . . 1 . . . . . . . . . . . . . . . Unreport Threat 3 | . . . . . . . 1 . . . 2 . . . . . . . . . . . Zone Layout 1 | . . . . . . . 1 . . . . . . . . . . . . . . . Garrison Registry 2 | . . . . . . . . . . . . . . 1 . . . 1 . . . . EX-Prototype ID Bank 1 | . . . 1 . . . . . . . . . . . . . . . . . . . Fabricator Hacks . | . . . . . . . . . . . . . . . . . . . . . . . Repair Station Hacks . | . . . . . . . . . . . . . . . . . . . . . . . Recycling Unit Hacks . | . . . . . . . . . . . . . . . . . . . . . . . Scanalyzer . | . . . . . . . . . . . . . . . . . . . . . . . Garrison Access Hacks 9 | . . . . . 1 . 1 . 1 . 1 . 1 . 1 . 1 . 1 . 1 . Unlock Access 9 | . . . . . 1 . 1 . 1 . 1 . 1 . 1 . 1 . 1 . 1 . Unauthorized Hacks 6 | . 1 . . . 1 . 2 . 1 . 1 . . . . . . . . . . . Terminals 4 | . . . . . 1 . 2 . 1 . . . . . . . . . . . . . Assimilate 1 | . . . . . . . . . 1 . . . . . . . . . . . . . Botnet 3 | . . . . . 1 . 2 . . . . . . . . . . . . . . . Fabricators 1 | . . . . . . . . . . . 1 . . . . . . . . . . . Fabnet 1 | . . . . . . . . . . . 1 . . . . . . . . . . . Repair Stations . | . . . . . . . . . . . . . . . . . . . . . . . Recycling Units 1 | . 1 . . . . . . . . . . . . . . . . . . . . . Tunnel 1 | . 1 . . . . . . . . . . . . . . . . . . . . . Scanalyzers . | . . . . . . . . . . . . . . . . . . . . . . . Garrison Access . | . . . . . . . . . . . . . . . . . . . . . . . Data Cores Recovered . | . . . . . . . . . . . . . . . . . . . . . . . Used . | . . . . . . . . . . . . . . . . . . . . . . . Hacking Detections 28 | . 1 . . . 1 2 4 3 2 1 2 2 1 . . 2 1 2 1 2 1 . Full Trace Events 1 | . . . . . . 1 . . . . . . . . . . . . . . . . Feedback Events . | . . . . . . . . . . . . . . . . . . . . . . . Feedback Blocked . | . . . . . . . . . . . . . . . . . . . . . . . Robot Schematics Acquired 1 | . . . . . . . . . 1 . . . . . . . . . . . . . Robots Built . | . . . . . . . . . . . . . . . . . . . . . . . Authchips . | . . . . . . . . . . . . . . . . . . . . . . . Time . | . . . . . . . . . . . . . . . . . . . . . . . Total Robot Build Rating . | . . . . . . . . . . . . . . . . . . . . . . . Part Schematics Acquired . | . . . . . . . . . . . . . . . . . . . . . . . Parts Built . | . . . . . . . . . . . . . . . . . . . . . . . Authchips . | . . . . . . . . . . . . . . . . . . . . . . . Time . | . . . . . . . . . . . . . . . . . . . . . . . Total Part Build Rating . | . . . . . . . . . . . . . . . . . . . . . . . Parts Repaired . | . . . . . . . . . . . . . . . . . . . . . . . Time . | . . . . . . . . . . . . . . . . . . . . . . . Parts Recycled . | . . . . . . . . . . . . . . . . . . . . . . . Recycled Matter . | . . . . . . . . . . . . . . . . . . . . . . . Retrieved Matter . | . . . . . . . . . . . . . . . . . . . . . . . Retrieved Components . | . . . . . . . . . . . . . . . . . . . . . . . Parts Scanalyzed . | . . . . . . . . . . . . . . . . . . . . . . . Part Schematics Acquired . | . . . . . . . . . . . . . . . . . . . . . . . Parts Damaged . | . . . . . . . . . . . . . . . . . . . . . . . Bothacking | -11 -10 -10 -10 -9 -8 -8 -8 -8 -7 -7 -7 -7 -6 -6 -5 -5 -4 -4 -3 -3 -3 -3 ------------ Run | Jun Mat Min Exi Min Mat Gar Mat Gar Fac Gar Fac Gar Fac Gar Fac Gar Fac Gar Res Gar Res Gar Used RIF Installer 8 | . . . . . . 1 . 1 . 1 . 1 . 1 . 1 . 1 . 1 . . Hotswap 1 | . . . . . . . . . . 1 . . . . . . . . . . . . Code Merge 1 | . . . . . . . . . . . . . . 1 . . . . . . . . Command Fork 1 | . . . . . . . . . . . . . . . . . . 1 . . . . Threat Obfuscator 1 | . . . . . . . . 1 . . . . . . . . . . . . . . Robot Detection 1 | . . . . . . . . . . . . 1 . . . . . . . . . . Watcher Feeds 1 | . . . . . . . . . . . . . . . . 1 . . . . . . Autoassimilate 1 | . . . . . . . . . . . . . . . . . . . . 1 . . Robots Hacked 118 | . . . . . . . 1 9 8 11 2 13 8 14 4 3 . 6 5 16 8 10 Non-combat 14 | . . . . . . . . . 2 1 . 1 6 . 2 . . . 2 . . . Combat 104 | . . . . . . . 1 9 6 10 2 12 2 14 2 3 . 6 3 16 8 10 Autoassimilated 8 | . . . . . . . . . . . . . . . . . . . . 3 2 3 Robot Hacks Applied 118 | . . . . . . . 2 9 10 11 3 13 11 14 4 2 . 6 6 13 7 7 parse_system 5 | . . . . . . . . . . . . . . . . . . 5 . . . . drop_inventory 4 | . . . . . . . . . . . . . 1 . 1 . . . 2 . . . ignore_parts 5 | . . . . . . . . . . . . . 4 . 1 . . . . . . . map_route 1 | . . . . . . . . . 1 . . . . . . . . . . . . . relay_feed 1 | . . . . . . . . . 1 . . . . . . . . . . . . . find_garrison 6 | . . . . . . . 1 . 1 . 1 . 1 . . . . . 1 . 1 . disrupt_area 1 | . . . . . . . . . . 1 . . . . . . . . . . . . overload_power 1 | . . . . . . . . . . 1 . . . . . . . . . . . . reboot_system 3 | . . . . . . . . 1 . . . . . . . 1 . . 1 . . . overwrite_iff 37 | . . . . . . . . 2 4 3 1 5 1 10 . . . . . 4 6 1 streamctrl_low 1 | . . . . . . . . . . . . . 1 . . . . . . . . . formatsys_low 2 | . . . . . . . . . . . . . 2 . . . . . . . . . formatsys_high 51 | . . . . . . . 1 6 3 6 1 8 1 4 2 1 . 1 2 9 . 6 Relay Couplers Released 118 | . . . . . . 11 . 24 . 15 . 15 . 9 . 8 . 12 . 16 . 8 Machine Destruction 118 | . . . . . . 11 . 24 . 15 . 15 . 9 . 8 . 12 . 16 . 8 Attached 40 | . . . . . . . 1 4 4 6 2 5 1 . . 1 . 1 . 5 2 8 Merged Code Value 174 | . . . . . . . . . . . . . . . . . . 25 . 61 . 88 Fabnet Peak Effective % 3 | . . . . . . . . . . . . . 3 3 1 1 . . . . . . Autooverrided 1 | . . . . . . . . . . . . . . . . 1 . . . . . . Robots Rewired 13 | . . . . . . . . . . . . 7 . . . . . . . 6 . . Allies Hacked 5 | . . . . . . . . . . . . . . . . . . . . 1 . 4 Hacks Repelled . | . . . . . . . . . . . . . . . . . . . . . . . Allies | -11 -10 -10 -10 -9 -8 -8 -8 -8 -7 -7 -7 -7 -6 -6 -5 -5 -4 -4 -3 -3 -3 -3 -------- Run | Jun Mat Min Exi Min Mat Gar Mat Gar Fac Gar Fac Gar Fac Gar Fac Gar Fac Gar Res Gar Res Gar Total Allies 130 | . . 3 . . . . 1 8 8 9 2 22 5 16 2 4 . 1 2 26 9 12 Largest Group 18 | . . 3 3 3 1 . 1 3 5 7 4 18 12 12 8 9 1 2 4 12 14 7 Highest-Rated Group 647 | . . 40 40 40 16 . 15 61 112 178 125 647 385 388 378 481 40 89 200 496 590 296 Highest-Rated Ally 116 | . . 16 16 16 16 . 15 29 29 40 40 95 62 80 80 80 40 49 64 64 116 116 Total Orders 24 | . . . . . . . 1 2 3 5 . 11 . . 2 . . . . . . . STAY 11 | . . . . . . . 1 1 1 3 . 4 . . 1 . . . . . . . FOLLOW 12 | . . . . . . . . 1 1 2 . 7 . . 1 . . . . . . . AID 1 | . . . . . . . . . 1 . . . . . . . . . . . . . Ally Attacks 785 | . . 7 . 16 1 . 11 39 32 75 8 85 72 111 43 89 . 2 3 96 41 54 Total Damage 24007 | . . 55 . 139 14 . 266 496 437 2184 220 3988 1839 3192 1082 2917 . 23 82 3601 1694 1778 Kills 162 | . . 3 . 3 . . 5 7 6 19 2 22 14 17 7 23 . . . 16 8 10 Allies Corrupted 4 | . . . . . . . . . . . . . 1 . . . . . . 2 . 1 Allies Melted 2 | . . . . . . . . . . 1 . . . . . . . . . 1 . . Intel | -11 -10 -10 -10 -9 -8 -8 -8 -8 -7 -7 -7 -7 -6 -6 -5 -5 -4 -4 -3 -3 -3 -3 ------- Run | Jun Mat Min Exi Min Mat Gar Mat Gar Fac Gar Fac Gar Fac Gar Fac Gar Fac Gar Res Gar Res Gar Robot Analysis Total . | . . . . . . . . . . . . . . . . . . . . . . . Derelict Logs Recovered . | . . . . . . . . . . . . . . . . . . . . . . . Drone Launches . | . . . . . . . . . . . . . . . . . . . . . . . Drone Recoveries . | . . . . . . . . . . . . . . . . . . . . . . . Exploration | -11 -10 -10 -10 -9 -8 -8 -8 -8 -7 -7 -7 -7 -6 -6 -5 -5 -4 -4 -3 -3 -3 -3 ------------- Run | Jun Mat Min Exi Min Mat Gar Mat Gar Fac Gar Fac Gar Fac Gar Fac Gar Fac Gar Res Gar Res Gar Turns Passed 15604 | 5 632 544 677 468 560 1352 2129 1300 381 1340 161 1089 339 451 163 629 241 1037 153 1321 225 407 Spaces Moved 8555 | 5 298 308 307 180 267 584 1089 583 254 687 115 665 235 291 106 447 186 712 114 732 166 224 Core 12 | . . . . . . 1 . . . . . . . . . . . . . . . 11 Treads 1229 | . 218 308 307 164 120 110 . . . . . . . . . . . . . . . 2 Legs 7094 | 5 80 . . . . 416 1089 583 254 687 115 665 235 291 106 447 186 712 114 732 166 211 Wheels 220 | . . . . 16 147 57 . . . . . . . . . . . . . . . . Hover . | . . . . . . . . . . . . . . . . . . . . . . . Flight . | . . . . . . . . . . . . . . . . . . . . . . . Fastest Speed 50 | 120 120 160 160 155 110 95 120 120 120 120 120 120 120 120 120 120 120 120 120 120 120 50 Average Speed 137 | 120 149 160 220 232 168 156 125 120 120 170 120 120 120 120 120 120 120 120 120 120 120 117 Slowest Speed 300 | 120 160 160 240 240 240 300 190 190 120 190 120 190 120 120 120 120 120 120 120 120 120 190 Overloaded Moves . | . . . . . . . . . . . . . . . . . . . . . . . Propulsion Burnouts . | . . . . . . . . . . . . . . . . . . . . . . . Robots Hopped . | . . . . . . . . . . . . . . . . . . . . . . . Cave-ins Triggered . | . . . . . . . . . . . . . . . . . . . . . . . Exploration Rate (%) 40 | 2 40 41 66 51 26 56 73 77 8 75 4 76 10 38 5 66 7 75 10 87 10 35 Regions Visited 22 Branch Regions 3 Pre-discovered Areas 1 | . 1 . . . . . . . . . . . . . . . . . . . . . Known Exits Taken 9 | . . . . . 1 . 1 . 1 . 1 . 1 . 1 . 1 . 1 . 1 . Unknown Exits Taken 5 | 1 1 1 1 1 . . . . . . . . . . . . . . . . . . Scrap Searched 3 | . . 1 . 2 . . . . . . . . . . . . . . . . . . Spaces Dug 106 | . . . . 16 . 12 55 6 . . . 6 . . . . 3 2 . 6 . . Terrain Destroyed 324 | . . . . 17 24 24 74 6 . 11 . 17 . 6 . 40 3 3 . 62 . 37 Melee 11 | . . . . . . . . . . . . . . . . . 3 2 . 6 . . Projectile 66 | . . . . 1 . . 64 . . . . . . . . . . . . . . 1 AOE 247 | . . . . 16 24 24 10 6 . 11 . 17 . 6 . 40 . 1 . 56 . 36 Terrain Rammed . | . . . . . . . . . . . . . . . . . . . . . . . Walls Destroyed . | . . . . . . . . . . . . . . . . . . . . . . . Machines Disabled . | . . . . . . . . . . . . . . . . . . . . . . . Actions | -11 -10 -10 -10 -9 -8 -8 -8 -8 -7 -7 -7 -7 -6 -6 -5 -5 -4 -4 -3 -3 -3 -3 --------- Run | Jun Mat Min Exi Min Mat Gar Mat Gar Fac Gar Fac Gar Fac Gar Fac Gar Fac Gar Res Gar Res Gar Total 11511 | 4 406 332 309 205 334 871 1731 1129 318 807 133 925 278 361 132 509 197 846 128 1034 185 337 Wait 1403 | . 31 4 . 1 13 120 488 421 23 26 6 62 3 18 6 1 6 63 4 82 3 22 Move 8541 | 4 297 307 306 179 267 583 1089 582 254 686 115 664 234 290 106 446 186 711 114 731 166 224 Hop . | . . . . . . . . . . . . . . . . . . . . . . . Pick Up 223 | . 5 4 1 2 13 31 26 28 3 17 2 15 8 9 . 13 . 13 1 26 . 6 Fast Attach 45 | . 3 . . . 4 4 4 . . 1 . . 3 1 3 4 1 . . 5 . 12 Attach 63 | . 4 1 . 1 2 7 5 5 4 2 2 4 1 . . 2 . 2 . 12 2 7 Detach 4 | . . . . . 1 . . 1 . . . . . . . 1 . . . . . 1 Swap 108 | . . . 1 2 4 15 11 15 4 9 1 8 2 4 . 5 1 11 . 6 1 8 Drop 94 | . 4 2 1 . 1 7 13 14 . 6 . . 5 2 1 8 . 7 1 4 . 18 Fire 621 | . 60 14 . 18 28 86 78 48 19 58 7 34 21 27 16 11 . 17 7 33 11 28 Melee 133 | . . . . . . . 2 12 . . . . . 9 . 12 3 17 1 69 1 7 Ram . | . . . . . . . . . . . . . . . . . . . . . . . Kick 33 | . . . . . . . 14 . 1 1 . 9 . . . 3 . . . 4 1 . Crush 6 | . 2 . . 2 1 1 . . . . . . . . . . . . . . . . Escape Stasis 40 | . . . . . . 15 . . 10 . . 5 . . . 1 . 4 . 5 . . Rewire 197 | . . . . . . 2 1 3 . 1 . 124 1 1 . 2 . 1 . 57 . 4 Trap . | . . . . . . . . . . . . . . . . . . . . . . . Miscellaneous . | . . . . . . . . . . . . . . . . . . . . . . . Route ------- -11/Junkyard -10/Materials -10/Mines (discovered 3 exits: [*Mat x2] / *Exi) -10/Exiles (discovered 2 exits: [*Min x2]) -9/Mines -8/Materials (discovered 2 exits: *Fac / Gar) -8/Garrison (discovered 2 exits: *Mat x2) -8/Materials (discovered 5 exits: *Fac x2 / [*Sto x2] / Gar) -8/Garrison (discovered 3 exits: *Fac x3) -7/Factory -7/Garrison (discovered 3 exits: *Fac x3) -7/Factory -7/Garrison (discovered 3 exits: *Fac x3) -6/Factory -6/Garrison (discovered 3 exits: *Fac x3) -5/Factory -5/Garrison (discovered 3 exits: *Fac x3) -4/Factory -4/Garrison (discovered 3 exits: *Res x3) -3/Research -3/Garrison (discovered 3 exits: *Res x3) -3/Research -3/Garrison History --------- Turn | Location | Event 1 | -11/Junkyard | Discovered new exit (range 2) 6 | -11/Junkyard | Entered Materials 89 | -10/Materials | Discovered new exit (range 13) 310 | -10/Materials | Build established: Mutant 638 | -10/Materials | Entered Mines 707 | -10/Mines | Met a Derelict bent on vengeance 753 | -10/Mines | Discovered new exit (range 13) 757 | -10/Mines | Received a Rocket Launcher from a helpful Derelict 975 | -10/Mines | Discovered new exit (range 10) 993 | -10/Mines | Assisted by bots powering up and referring to "LRC-V3" 1171 | -10/Mines | Deemed a non-threat by the Exiles lab entrance 1172 | -10/Mines | Discovered new exit (range 5) 1182 | -10/Mines | Entered Exiles 1182 | -10/Exiles | Accompanied by 3 allies 1208 | -10/Exiles | Discovered new exit (range 15) 1226 | -10/Exiles | Met 8R-AWN 1248 | -10/Exiles | Met EX-HEX 1406 | -10/Exiles | Met EX-BIN 1435 | -10/Exiles | Aligned with FarCom system 1438 | -10/Exiles | Given EX-Vault access code 1493 | -10/Exiles | Opened EX-Vault 1548 | -10/Exiles | Warned to stay clear of 0b10 Research branches 1603 | -10/Exiles | Found Lightpack 2.0 1722 | -10/Exiles | Met EX-DEC 1839 | -10/Exiles | Discovered new exit (range 10) 1859 | -10/Exiles | Left Exiles lab with Lightpack 2.0 1859 | -10/Exiles | Entered Mines 1859 | -9/Mines | Accompanied by 3 allies 1988 | -9/Mines | A weapon hastily lodged in a ceiling crevice suddenly fell to the ground 2041 | -9/Mines | Excavation squad dispatched 2041 | -9/Mines | A large section of the Mines collapsed 2291 | -9/Mines | Excavation squad dispatched 2316 | -9/Mines | Discovered new exit (range 8) 2327 | -9/Mines | Entered Materials 2327 | -8/Materials | Accompanied by 1 ally 2327 | -8/Materials | Evolved 4 slots: Utility x4 2612 | -8/Materials | Discovered new exit (range 8) 2624 | -8/Materials | Build established: Hauler-Mutant 2887 | -8/Materials | Identified exit to Garrison 2887 | -8/Materials | Entered Garrison 2972 | -8/Garrison | Triggered checkpoint 3024 | -8/Garrison | Discovered new exit (range 6) 3186 | -8/Garrison | Triggered checkpoint 3434 | -8/Garrison | Triggered checkpoint 3597 | -8/Garrison | Discovered new exit (range 12) 3648 | -8/Garrison | Garrison Relay disabled 3670 | -8/Garrison | Triggered checkpoint 3863 | -8/Garrison | Installed Relay Interface Framework 3898 | -8/Garrison | Triggered checkpoint 4000 | -8/Garrison | Lost 5 parts (1p1n2u1w) 4054 | -8/Garrison | Garrison Relay disabled 4239 | -8/Garrison | Entered Materials 4294 | -8/Materials | Build established: Bothacker-Mutant 4391 | -8/Materials | Discovered new exit (range 16) 4469 | -8/Materials | Lost 3 parts (2u1w) 4529 | -8/Materials | Core integrity fell below 50% 4705 | -8/Materials | Discovered new exit (range 12) 4771 | -8/Materials | Discovered new exit (range 7) 5218 | -8/Materials | Discovered new exit (range 5) 5652 | -8/Materials | Build established: Bothacker-Skirmisher 6137 | -8/Materials | Build established: Bothacker-Mutant 6368 | -8/Materials | Identified exit to Garrison 6368 | -8/Materials | Entered Garrison 6440 | -8/Garrison | Expanded RIF knowledge: Threat Obfuscation 6554 | -8/Garrison | Triggered checkpoint 6583 | -8/Garrison | Garrison Relay disabled 6632 | -8/Garrison | Triggered checkpoint 6725 | -8/Garrison | Discovered new exit (range 13) 6982 | -8/Garrison | Triggered checkpoint 7000 | -8/Garrison | Garrison Relay disabled 7090 | -8/Garrison | Discovered new exit (range 10) 7403 | -8/Garrison | Garrison Relay disabled 7405 | -8/Garrison | Garrison Relay disabled 7407 | -8/Garrison | Garrison Relay disabled 7409 | -8/Garrison | Garrison Relay disabled 7576 | -8/Garrison | Triggered checkpoint 7652 | -8/Garrison | Discovered new exit (range 13) 7668 | -8/Garrison | Entered Factory 7668 | -7/Factory | Accompanied by 1 ally 7668 | -7/Factory | Evolved 2 slots: Propulsion x1, Utility x1 8049 | -7/Factory | Identified exit to Garrison 8049 | -7/Factory | Entered Garrison 8049 | -7/Garrison | Accompanied by 5 allies 8112 | -7/Garrison | Triggered checkpoint 8192 | -7/Garrison | Garrison Relay disabled 8214 | -7/Garrison | Garrison Relay disabled 8395 | -7/Garrison | Triggered checkpoint 8406 | -7/Garrison | Triggered checkpoint 8498 | -7/Garrison | Discovered new exit (range 13) 8604 | -7/Garrison | Triggered checkpoint 8675 | -7/Garrison | Expanded RIF knowledge: Hotswap 8694 | -7/Garrison | Triggered checkpoint 8699 | -7/Garrison | Garrison Relay disabled 8796 | -7/Garrison | Triggered checkpoint 8910 | -7/Garrison | Discovered new exit (range 10) 9137 | -7/Garrison | Discovered new exit (range 15) 9210 | -7/Garrison | Triggered checkpoint 9279 | -7/Garrison | Garrison Relay disabled 9389 | -7/Garrison | Entered Factory 9389 | -7/Factory | Accompanied by 3 allies 9544 | -7/Factory | Identified exit to Garrison 9550 | -7/Factory | Entered Garrison 9550 | -7/Garrison | Accompanied by 4 allies 9672 | -7/Garrison | Triggered checkpoint 9836 | -7/Garrison | Triggered checkpoint 9870 | -7/Garrison | Lost 3 parts (1p2n) 9918 | -7/Garrison | Garrison Relay disabled 10015 | -7/Garrison | Found embedded Infiltrators 10086 | -7/Garrison | Triggered checkpoint 10090 | -7/Garrison | Triggered checkpoint 10094 | -7/Garrison | Triggered checkpoint 10140 | -7/Garrison | Discovered new exit (range 14) 10186 | -7/Garrison | Triggered checkpoint 10260 | -7/Garrison | Garrison Relay disabled 10364 | -7/Garrison | Discovered new exit (range 13) 10406 | -7/Garrison | Triggered checkpoint 10412 | -7/Garrison | Expanded RIF knowledge: Robot Detection 10426 | -7/Garrison | Garrison Relay disabled 10547 | -7/Garrison | Discovered new exit (range 11) 10572 | -7/Garrison | Triggered checkpoint 10639 | -7/Garrison | Entered Factory 10639 | -6/Factory | Accompanied by 12 allies 10639 | -6/Factory | Evolved 2 slots: Utility x2 10703 | -6/Factory | Build established: Botlord-Mutant 10900 | -6/Factory | Garrison activated, responded to threat 10965 | -6/Factory | Identified exit to Garrison 10978 | -6/Factory | Entered Garrison 10978 | -6/Garrison | Accompanied by 11 allies 11006 | -6/Garrison | Triggered checkpoint 11069 | -6/Garrison | Garrison Relay disabled 11098 | -6/Garrison | Triggered checkpoint 11120 | -6/Garrison | Triggered checkpoint 11171 | -6/Garrison | Discovered new exit (range 57) 11171 | -6/Garrison | Discovered new exit (range 52) 11171 | -6/Garrison | Discovered new exit (range 25) 11190 | -6/Garrison | Triggered checkpoint 11298 | -6/Garrison | Triggered checkpoint 11331 | -6/Garrison | Expanded RIF knowledge: Code Merge 11347 | -6/Garrison | Garrison Relay disabled 11395 | -6/Garrison | Found embedded Infiltrators 11429 | -6/Garrison | Entered Factory 11429 | -5/Factory | Accompanied by 7 allies 11429 | -5/Factory | Evolved 2 slots: Utility x2 11587 | -5/Factory | Identified exit to Garrison 11592 | -5/Factory | Entered Garrison 11592 | -5/Garrison | Accompanied by 8 allies 11648 | -5/Garrison | Triggered checkpoint 11680 | -5/Garrison | Garrison Relay disabled 11734 | -5/Garrison | Triggered checkpoint 11781 | -5/Garrison | Spotted B-75 Beast 11788 | -5/Garrison | Discovered new exit (range 9) 11797 | -5/Garrison | Allies destroyed B-75 Beast 11924 | -5/Garrison | Triggered checkpoint 11948 | -5/Garrison | Found embedded Infiltrators 11963 | -5/Garrison | Garrison Relay disabled 12024 | -5/Garrison | Triggered checkpoint 12032 | -5/Garrison | Triggered checkpoint 12038 | -5/Garrison | Triggered checkpoint 12076 | -5/Garrison | Discovered new exit (range 9) 12169 | -5/Garrison | Discovered new exit (range 12) 12186 | -5/Garrison | Triggered checkpoint 12191 | -5/Garrison | Expanded RIF knowledge: Watcher Feeds 12221 | -5/Garrison | Entered Factory 12221 | -4/Factory | Accompanied by 1 ally 12221 | -4/Factory | Evolved 2 slots: Utility x2 12462 | -4/Factory | Identified exit to Garrison 12462 | -4/Factory | Entered Garrison 12462 | -4/Garrison | Warlord forces raided the area 12462 | -4/Garrison | Accompanied by 1 ally 12501 | -4/Garrison | Warlord forces retreated 12513 | -4/Garrison | Triggered checkpoint 12519 | -4/Garrison | Triggered checkpoint 12544 | -4/Garrison | Garrison Relay disabled 12546 | -4/Garrison | Triggered checkpoint 12562 | -4/Garrison | Triggered checkpoint 12570 | -4/Garrison | Triggered checkpoint 12626 | -4/Garrison | Triggered checkpoint 12751 | -4/Garrison | Discovered new exit (range 15) 12771 | -4/Garrison | Expanded RIF knowledge: Command Fork 12962 | -4/Garrison | Discovered new exit (range 9) 13006 | -4/Garrison | Triggered checkpoint 13018 | -4/Garrison | Garrison Relay disabled 13119 | -4/Garrison | Discovered new exit (range 12) 13170 | -4/Garrison | Triggered checkpoint 13187 | -4/Garrison | Discovered new exit (range 76) 13187 | -4/Garrison | Discovered new exit (range 68) 13187 | -4/Garrison | Discovered new exit (range 18) 13198 | -4/Garrison | Garrison Relay disabled 13380 | -4/Garrison | Found Relay Coupler [Proto] 13382 | -4/Garrison | Found Relay Coupler [Proto] 13384 | -4/Garrison | Found Relay Coupler [Proto] 13387 | -4/Garrison | Found Relay Coupler [Proto] 13499 | -4/Garrison | Entered Research 13499 | -3/Research | Accompanied by 2 allies 13499 | -3/Research | Evolved 2 slots: Utility x2 13648 | -3/Research | Identified exit to Garrison 13652 | -3/Research | Entered Garrison 13652 | -3/Garrison | Accompanied by 4 allies 13732 | -3/Garrison | Triggered checkpoint 13741 | -3/Garrison | Garrison Relay disabled 13830 | -3/Garrison | Triggered checkpoint 13832 | -3/Garrison | Triggered checkpoint 13836 | -3/Garrison | Triggered checkpoint 13855 | -3/Garrison | P-80 Master assimilated allied Veteran 8a 13878 | -3/Garrison | Lost 3 parts (3u) 13911 | -3/Garrison | Discovered new exit (range 12) 13943 | -3/Garrison | Expanded RIF knowledge: Autoassimilate 14034 | -3/Garrison | Triggered checkpoint 14045 | -3/Garrison | Garrison Relay disabled 14128 | -3/Garrison | Triggered checkpoint 14240 | -3/Garrison | Lost 3 parts (3u) 14341 | -3/Garrison | Discovered new exit (range 14) 14355 | -3/Garrison | Rescued a captive Derelict 14475 | -3/Garrison | Garrison Relay disabled 14609 | -3/Garrison | Triggered checkpoint 14618 | -3/Garrison | Triggered checkpoint 14644 | -3/Garrison | Triggered checkpoint 14646 | -3/Garrison | Found Antimissile System 14658 | -3/Garrison | Found Antimissile System 14661 | -3/Garrison | Found Antimissile System 14824 | -3/Garrison | Discovered new exit (range 15) 14866 | -3/Garrison | Triggered checkpoint 14887 | -3/Garrison | Garrison Relay disabled 14973 | -3/Garrison | Entered Research 14973 | -3/Research | Accompanied by 12 allies 15158 | -3/Research | Spotted B-86 Titan 15184 | -3/Research | Spotted B-86 Titan 15185 | -3/Research | Autoassimilated Titan 8a with RIF 15192 | -3/Research | Garrison activated, responded to threat 15198 | -3/Research | Identified exit to Garrison 15198 | -3/Research | Entered Garrison 15198 | -3/Garrison | Accompanied by 1 ally 15390 | -3/Garrison | Triggered checkpoint 15413 | -3/Garrison | Garrison Relay disabled 15463 | -3/Garrison | Garrison Relay disabled 15547 | -3/Garrison | Triggered checkpoint 15548 | -3/Garrison | Triggered checkpoint 15548 | -3/Garrison | Triggered checkpoint 15576 | -3/Garrison | Core integrity fell below 50% 15579 | -3/Garrison | System corruption reached 10% 15594 | -3/Garrison | Core integrity fell below 20% 15602 | -3/Garrison | System corruption reached 30% 15605 | -3/Garrison | Destroyed by S-43 Plague with Heavy Machine Gun Last Messages --------------- 15587_ C-30 ARC bursts open, deploying its payload. 15587_ S-43 Plague unfolds itself. 15588_ Slug penetrates Reinforced Barrier. 15589_ Hvy. Treads destroyed. 15589_ Relay Coupler [NC] destroyed. 15591_ P-80 Master destroyed. 15592_ Slug penetrates Reinforced Barrier. 15592_ Penetrated by Slug. 15592_ Hardcell Cannon destroyed. 15594_ Acquired Corrupted Unknown Energy Cannon. 15596_ Identified Matter Neutralizer. 15596_ Integrated Corrupted Matter Neutralizer (+7). 15596_ Complication: Energy sink damages Corrupted Matter Neutralizer (-37). 15597_ S-43 Plague destroyed. 15597_ Relay Coupler [Specialist] destroyed. 15599_ S-43 Plague destroyed. 15601_ Matter Neutralizer destroyed. 15602_ System corrupted: Component data lost. 15604_ Lgt. Antimatter Reactor destroyed. Map ----- +----------------------------------------------------+ | ?????????????????????????????????????????????????? | | ??????????????????###????????????????????????????? | | ????????????????# ????????????????????????????? | | ???????????????## #? ##??????????????????????? | | ???????????# ?? ? ##?????????????????????? | | ?????????? ?? ? ?????????????????????? | | ??????????? ?? ? ??????????????????????? | | ???????????# ?# #? #??????????????????????? | | ???????????# ## ## ###????????????????????? | | ???????????" % #????????????????????? | | ???????????" %#????????????????????? | | ???????????" ? [= !| #????????????????????? | | ???????????" ? =%==%=%= ?????????????????????? | | ???????????# ?#=*==# %[%##??????###????????????? | | ????######## ##[%%%%*= * ########"##???????????? | | ???? ==%= #???????????? | | ???? ^^%%[ #???????####? | | ???????????# ^^ #?????### ## | | ???????????###### ! # ##### # ##????#"# | | ????????????????# =[*## [ ## # ##???#" | | ????????????????####### %!### # = #???#"! | | ??????????????????????#!h##?? % = ##???# | | ??????????????????????#%p#????# # % #???#"# | | ??????????????????????#!s##???# ## #???### ## | | ??????????????????????#ss;##### ##= ######### #" | | ??????????????????????#!=@ s =*[ | | ??????????????????????# == s ^^^% | | ??????????????????????####### #### %=######"###### | | ????????????????????????????# #?#" | #????###????# | | ????????????????????????????# #?#| ! #???????????? | | ????????????????????????????# #?#] #????######## | | ???s????????????????????????# #?##/ !#????#"""# | | ???s????????????????????????# #??#=!*#????#" | | ???s????????????????????????# #??# !#????#" | | ??????????????????????????"?? ???# !#????# | | ??????????????????????##??"?? ???#=!!#????#" | | ?????????????????????#"""""## ##?# !#????#" | | ?????????????????????#" " #?# =#????#""# | | ?????????????????????#" #?# #????#### | | ?????????????????????#" " #?# #???????# | | ?????????????????????#"" """ ?# #???????# | | ??????????????????????# " #?# #???????## | | ??????????????????????# #?# #????????#### | | ??????????????????????# #?# #???????????? | | ??????????????????????# #?# #???????????? | | ??????????????????????## # ## ##?# #???????????? | | ????????????????????????????# #??# ###?????????? | | ????????????????????????????# #### #?????????? | | ????????????????????????????# + #?????????? | | ????????????????????????????###### #?????????? | +----------------------------------------------------+ Best States ------------- Heat Dissipation 69 Energy Generation 25 Energy Capacity 1050 Matter Stores 300 Matter Capacity 300 Sight Range 16 Terrain Scan Range 16 Terrain Scan Density 10 Jamming Range 14 Corruption Block 14 Armor Coverage 1425 Resistance: EM 20 Phase Shifting 15 Evasion (%) 70 Targeting Accuracy 8 Recoil Reduction 2 Offensive Hacking 14 Defensive Hacking 10 Relay Coupler Types 7 Relay Coupler Value 393 Authchip Count 4 Item Schematics ----------------- None Robot Schematics ------------------ S-27 Virus | -7/Factory | Hacked Fabricated ------------ Nothing Alien Tech Used ----------------- None Achievements -------------- None Challenges ------------ None Game ------ Seed PortableDeepMaul Manual? 0 Play Time 02:48:30 Cumulative 359.9 hours Start 2023.03.30 @ 08:47:05 End 2023.03.30 @ 22:56:40 Sessions 4 Manual Loads 0 Difficulty Rogue Special Mode None Game No. 406 Rogue 406 Adventurer 0 Explorer 0 Win Type - Total 11 Types 8/0/2/1/0/0/0/0/0 Lore% 80 Gallery% 89 Achievement% 78 Wizard Run 0 Options --------- ASCII 0 Keyboard 0 Movement Numpad Keybinds 0 Fullscreen 1 Font 18/Terminus Map View 76x50 Tactical HUD 1 Map Filters NONE Filters NONE Steam 1 RUN: c773dc28-7135-4145-abbe-a8eeeaa4621c